fUSD/lending_fUSD_20241207
["ID","MTS","AMOUNT","RATE_DAILY","PERIOD"]
[344594034,1733590238127,-1971.58,0.00015133,2]
[344594035,1733590238165,-1771.28400005,0.00015133,2]
[344594036,1733590239967,-107115.00817584,0.00015133,2]
[344594037,1733590240024,-337.04156631,0.00015133,2]
[344594038,1733590240081,-18714.5548279,0.00015133,2]
[344594039,1733590240092,-4393.511982,0.00015133,2]
[344594040,1733590240104,-4353.954074,0.00015133,2]
[344594050,1733590243073,-7817.47719999,0.00015133,2]
[344594051,1733590243186,-2772.32630457,0.00015133,2]
[344594052,1733590243206,-6803.48855838,0.00015133,2]
[344594053,1733590243295,-2535.3,0.00015133,2]
[344594054,1733590243352,-5077.568,0.00015133,2]
[344594055,1733590243408,-360.20251,0.00015133,2]
[344594099,1733590245852,-498.75999995,0.00015133,2]
[344594100,1733590245963,-44763.19488933,0.00015133,2]
[344594101,1733590246022,-1039.449305,0.00015133,2]
[344594102,1733590246134,-14313.96988386,0.00015133,2]
[344594103,1733590246190,-3919.7567794,0.00015133,2]
[344594110,1733590704780,3533.0,0.00015,60]
[344594115,1733591432052,-157.97,9.944e-05,2]
[344594116,1733591432061,-152.11,0.00010308,2]
[344594117,1733591432070,-2618.1457748,0.00012062,2]
[344594118,1733591432108,-4.0442252,0.00012062,2]
[344594119,1733591432117,-684.66,0.00012093,2]
[344594120,1733591432127,-178.68,0.00012103,2]
[344594121,1733591432136,-150.0,0.00012194,2]
[344594122,1733591432146,-1000.0,0.00012225,2]
[344594123,1733591432156,-292.76565849,0.0001226,2]
[344594124,1733591432168,-757.01750001,0.0001226,2]
[344594125,1733591432181,-1388.13996154,0.0001226,2]
[344594126,1733591432226,-21452.07687996,0.0001226,2]
[344594127,1733591432237,-960.0,0.00012324,2]
[344594128,1733591432246,-200.0,0.00012425,2]
[344594129,1733591432256,-250.0,0.00012431,2]
[344594130,1733591432266,-1054.45,0.0001249,2]
[344594131,1733591432275,-240.01,0.00012493,2]
[344594132,1733591432284,-150.0,0.000125,2]
[344594133,1733591432292,-250.0,0.00012501,2]
[344594134,1733591432301,-61574.62,0.00012501,2]
[344594135,1733591432310,-1500.0,0.00012509,2]
[344594136,1733591432319,-150.0,0.00012594,2]
[344594137,1733591432328,-960.0,0.0001278,2]
[344594138,1733591432337,-240.01,0.00012955,2]
[344594139,1733591432345,-176.63,0.0001299,2]
[344594140,1733591432355,-450.0,0.00013,2]
[344594141,1733591432364,-605.0,0.00013046,2]
[344594142,1733591432373,-8401.47,0.00013046,2]
[344594143,1733591432382,-960.0,0.00013236,2]
[344594144,1733591432391,-6936.4,0.00013281,2]
[344594145,1733591432400,-6936.4,0.00013285,2]
[344594146,1733591432409,-6936.4,0.00013288,2]
[344594147,1733591432417,-6936.4,0.00013292,2]
[344594148,1733591432426,-6936.4,0.00013295,2]
[344594149,1733591432435,-6936.4,0.00013299,2]
[344594150,1733591432444,-6936.4,0.00013302,2]
[344594151,1733591432455,-6936.4,0.00013306,2]
[344594152,1733591432464,-6936.4,0.00013309,2]
[344594153,1733591432473,-6936.4,0.00013313,2]
[344594154,1733591432482,-6936.4,0.00013316,2]
[344594155,1733591432491,-6936.4,0.0001332,2]
[344594156,1733591432500,-6936.4,0.00013323,2]
[344594157,1733591432509,-6936.4,0.00013327,2]
[344594159,1733591432521,-6936.4,0.0001333,2]
[344594161,1733591432530,-6936.4,0.00013334,2]
[344594162,1733591432539,-6936.4,0.00013337,2]
[344594163,1733591432548,-6936.4,0.00013341,2]
[344594164,1733591432558,-6936.4,0.00013344,2]
[344594165,1733591432567,-6936.4,0.00013348,2]
[344594166,1733591432576,-435.04599231,0.00013367,2]
[344594167,1733591432586,-516.06934883,0.00013367,2]
[344594168,1733591432595,-500.0,0.00013373,2]
[344594169,1733591432604,-240.01,0.00013417,2]
[344594170,1733591432613,-503.22554942,0.0001345,2]
[344594171,1733591432623,-161.23457175,0.0001346,2]
[344594174,1733591432632,-500.0,0.0001346,2]
[344594178,1733591432641,-500.0,0.0001346,2]
[344594181,1733591432650,-500.0,0.0001346,2]
[344594182,1733591432658,-517.0,0.0001349,2]
[344594183,1733591432667,-255.0,0.000136,2]
[344594184,1733591432677,-482.98,0.00013604,2]
[344594185,1733591432687,-178.68,0.00013616,2]
[344594186,1733591432696,-152.11,0.00013616,2]
[344594187,1733591432707,-960.0,0.00013692,2]
[344594188,1733591432717,-229.73,0.00013699,2]
[344594189,1733591432726,-511.57828357,0.000137,2]
[344594190,1733591432735,-152.56555854,0.000137,2]
[344594191,1733591432744,-1000.0,0.00013754,2]
[344594192,1733591432753,-166.63,0.00013784,2]
[344594193,1733591432763,-240.01,0.0001388,2]
[344594194,1733591432772,-667.43232862,0.00013921,2]
[344594195,1733591432781,-2865.83739254,0.00013997,2]
[344594196,1733591432802,-9965.1,0.00013997,2]
[344594197,1733591432813,-48991.34260746,0.00013997,2]
[344594198,1733591432822,-3200.0,0.00014,5]
[344594199,1733591432831,-1000.0,0.00014008,2]
[344594200,1733591432843,-500.0,0.00014008,2]
[344594201,1733591432852,-517.0,0.0001402,2]
[344594202,1733591432862,-6400.0,0.000141,5]
[344594203,1733591432871,-960.0,0.00014148,2]
[344594204,1733591432880,-9700.0,0.000142,5]
[344594205,1733591432889,-275.0508628,0.0001426,2]
[344594206,1733591432898,-10340.09119389,0.000143,5]
[344594207,1733591432910,-548.10313852,0.000143,5]
[344594208,1733591432921,-1207.44003,0.000143,5]
[344594209,1733591432936,-542.9334045,0.000143,5]
[344594217,1733591437986,-261.43223309,0.000143,5]
[344594218,1733591437995,-240.01,0.00014342,2]
[344594219,1733591438005,-166.63,0.00014352,2]
[344594220,1733591438015,-299.46,0.0001437,2]
[344594221,1733591438024,-1055.43007891,0.000144,5]
[344594222,1733591438100,-2112.23884391,0.000144,5]
[344594223,1733591438111,-1212.45000005,0.000144,5]
[344594224,1733591438123,-11719.88107713,0.000144,5]
[344594225,1733591438133,-3200.0,0.000145,5]
[344594226,1733591438142,-517.0,0.0001455,2]
[344594227,1733591438152,-3200.0,0.000146,5]
[344594228,1733591438162,-3200.0,0.000147,5]
[344594229,1733591438172,-433.0,0.000148,2]
[344594230,1733591438182,-3200.0,0.000148,5]
[344594231,1733591438191,-3696.0,0.000149,5]
[344594232,1733591438200,-166.63,0.00014921,2]
[344594233,1733591438212,-200.0,0.00014955,2]
[344594234,1733591438222,-232.23909867,0.00014955,2]
[344594235,1733591438232,-200.0,0.00014956,2]
[344594236,1733591438241,-200.0,0.00014956,2]
[344594237,1733591438251,-309.65213155,0.00014956,2]
[344594238,1733591438260,-978.65365035,0.00014957,2]
[344594239,1733591438270,-200.0,0.00014958,2]
[344594240,1733591438280,-412.86950874,0.00014958,2]
[344594241,1733591438290,-200.0,0.00014958,2]
[344594242,1733591438299,-7610.47453356,0.00014959,2]
[344594243,1733591438314,-517.7691157,0.00014959,2]
[344594244,1733591438326,-2047.75635074,0.00014959,2]
[344594245,1733591438335,-733.99023776,0.00014959,2]
[344594246,1733591438344,-978.65365035,0.0001496,2]
[344594247,1733591438353,-232.23909867,0.00014961,2]
[344594248,1733591438362,-200.0,0.00014961,2]
[344594249,1733591438371,-532.36066248,0.00014961,2]
[344594250,1733591438382,-18.13201584,0.00014961,2]
[344594251,1733591438391,-309.65213155,0.00014961,2]
[344594252,1733591438400,-978.65365035,0.00014962,2]
[344594253,1733591438409,-57.39967975,0.00014962,2]
[344594254,1733591438421,-174.83941892,0.00014962,2]
[344594255,1733591438430,-978.65365035,0.00014962,2]
[344594256,1733591438440,-200.0,0.00014963,2]
[344594257,1733591438450,-232.23909867,0.00014965,2]
[344594258,1733591438463,-200.0,0.00014966,2]
[344594259,1733591438473,-200.0,0.00014967,2]
[344594260,1733591438483,-550.49267832,0.00014968,2]
[344594261,1733591438493,-200.0,0.00014969,2]
[344594262,1733591438503,-200.0,0.00014969,2]
[344594263,1733591438515,-200.0,0.0001497,2]
[344594264,1733591438528,-309.65213155,0.00014971,2]
[344594266,1733591438538,-200.0,0.00014971,2]
[344594268,1733591438548,-733.99023776,0.00014972,2]
[344594270,1733591438559,-200.0,0.00014972,2]
[344594272,1733591438568,-200.0,0.00014972,2]
[344594274,1733591438577,-200.0,0.00014976,2]
[344594276,1733591438587,-181.25267,0.00014976,2]
[344594278,1733591438603,-369.24000832,0.00014976,2]
[344594280,1733591438612,-200.0,0.00014976,2]
[344594282,1733591438622,-200.0,0.00014977,2]
[344594284,1733591438631,-6429.86974913,0.00014979,2]
[344594286,1733591438642,-2626.8,0.00014979,2]
[344594289,1733591438655,-1812.29724,0.00014979,2]
[344594291,1733591439913,-10310.28202644,0.00014979,2]
[344594293,1733591439984,-103651.55625092,0.00014979,2]
[344594294,1733591439994,-309.65213155,0.00014979,2]
[344594295,1733591440003,-379609.25629787,0.0001498,3]
[344594296,1733591440012,-1510.89948483,0.0001498,3]
[344594297,1733591440021,-19850.0,0.0001498,2]
[344594298,1733591440031,-978.65365035,0.0001498,2]
[344594299,1733591440040,-412.86950874,0.0001498,2]
[344594300,1733591440050,-1335450.67705663,0.0001498,2]
[344594301,1733591440061,-35786.08735558,0.0001498,2]
[344594302,1733591440073,-443.53599743,0.0001498,2]
[344594303,1733591440109,-1132.07896806,0.0001498,2]
[344594304,1733591440121,-439.83573598,0.0001498,2]
[344594305,1733591440183,-8790.22599035,0.0001498,2]
[344594306,1733591440240,-4355.985101,0.0001498,2]
[344594307,1733591440251,-2946.6,0.0001498,2]
[344594308,1733591441880,-500000.0,0.0002,120]
[344594309,1733591443130,-7538.9331841,0.0001498,2]
[344594310,1733591443141,-8562.79590467,0.0001498,2]
[344594311,1733591443153,-4029.2,0.0001498,2]
[344594312,1733591443187,-433.90147,0.0001498,2]
[344594313,1733591443198,-15890.0,0.0001498,2]
[344594314,1733591443210,-24191.57366571,0.0001498,2]
[344594315,1733591443221,-5169.0380948,0.0001498,2]
[344594316,1733591443244,-2421.68252349,0.0001498,2]
[344594317,1733591443356,-485.305,0.0001498,2]
[344594320,1733591446104,-499.02620197,0.0001498,2]
[344594321,1733591446163,-671.999985,0.0001498,2]
[344594322,1733591446284,-299.98548405,0.0001498,2]
[344594323,1733591446296,-456.56999,0.0001498,2]
[344594324,1733591446307,-312.9730605,0.0001498,2]
[344594325,1733591446320,-475.66000002,0.0001498,2]
[344594326,1733591446333,-7153.30425779,0.0001498,2]
[344594327,1733591446352,-500.0,0.0001498,2]
[344594328,1733591446366,-2145.461875,0.0001498,2]
[344594329,1733591446378,-15158.41773,0.0001498,2]
[344594347,1733591702477,155.0,0.0001501,29]
[344594349,1733592002587,155.0,0.0001501,29]
[344594350,1733592188279,2514.43729287,0.00015068,120]
[344594351,1733592302619,155.0,0.0001501,29]
[344594353,1733592327147,3863.24655384,0.000199,120]
[344594356,1733592603317,155.0,0.0001501,29]
[344594359,1733592632267,-1410.68462305,7e-05,2]
[344594360,1733592632381,-221.71577695,7e-05,2]
[344594361,1733592632391,-150.0,8.91e-05,2]
[344594362,1733592632400,-468.6243465,8.919e-05,2]
[344594363,1733592632409,-4339.21706552,9e-05,2]
[344594364,1733592632418,-514.2,0.00011629,2]
[344594365,1733592632427,-33705.410615,0.00013373,2]
[344594366,1733592632436,-150.0,0.00013427,2]
[344594367,1733592632445,-250.0,0.0001344,2]
[344594368,1733592632455,-386.38,0.00013464,2]
[344594369,1733592632464,-250.0,0.00013492,2]
[344594370,1733592632472,-192.0,0.0001356,2]
[344594371,1733592632481,-196.91,0.00013699,2]
[344594372,1733592632490,-11268.16,0.00013734,2]
[344594373,1733592632500,-250.0,0.00013762,2]
[344594374,1733592632511,-300.0,0.00013839,2]
[344594375,1733592632520,-514.2,0.00013893,2]
[344594376,1733592632530,-1000.0,0.00013905,2]
[344594377,1733592632539,-300.49,0.00013957,2]
[344594378,1733592632548,-150.99,0.00013978,2]
[344594379,1733592632557,-3192.44,0.00013981,2]
[344594381,1733592632567,-186.98,0.00014053,2]
[344594383,1733592632576,-192.0,0.00014062,2]
[344594385,1733592632586,-166.85,0.00014233,2]
[344594387,1733592632595,-313.823,0.0001437,2]
[344594388,1733592632604,-192.0,0.00014564,2]
[344594390,1733592632613,-150.0,0.00014732,2]
[344594392,1733592632622,-300.49,0.00014732,2]
[344594395,1733592632631,-166.75,0.00014745,2]
[344594397,1733592632641,-200.0,0.00014754,2]
[344594399,1733592632649,-1939.5671412,0.00014829,2]
[344594401,1733592632658,-976.192,0.00014829,2]
[344594403,1733592632667,-179.489,0.00014829,2]
[344594405,1733592632676,-27614.0,0.0001483,2]
[344594407,1733592632685,-69282.31255672,0.00014874,2]
[344594408,1733592632694,-2500.0,0.0001488,2]
[344594409,1733592632703,-4754.82638,0.000149,2]
[344594410,1733592632712,-200.0,0.00014956,2]
[344594411,1733592632721,-270.72333181,0.00014956,2]
[344594412,1733592632730,-37517.48494451,0.00014956,2]
[344594413,1733592632740,-360.96444241,0.00014957,2]
[344594414,1733592632749,-200.0,0.00014957,2]
[344594415,1733592632759,-4500.07735484,0.00014958,2]
[344594416,1733592632771,-2399.8,0.00014958,2]
[344594417,1733592632784,-9309.300001,0.00014958,2]
[344594418,1733592632795,-1122.046,0.00014958,2]
[344594419,1733592632815,-4533.91972168,0.00014958,2]
[344594428,1733592638310,-5645.29615168,0.00014958,2]
[344594429,1733592638322,-18134.86543151,0.00014958,2]
[344594430,1733592638334,-7577.26644,0.00014958,2]
[344594431,1733592638345,-10951.62061726,0.00014958,2]
[344594432,1733592638357,-500.0,0.00014958,2]
[344594433,1733592638379,-1860.04352126,0.00014958,2]
[344594434,1733592638390,-163.51577324,0.00014958,2]
[344594435,1733592638400,-2075.47591015,0.00014958,2]
[344594436,1733592638449,-457.55087041,0.00014958,2]
[344594438,1733592640242,-14011.3698108,0.00014958,2]
[344594439,1733592640252,-15827.68896096,0.00014958,2]
[344594440,1733592640264,-7163.33205722,0.00014958,2]
[344594441,1733592640276,-14228.11893754,0.00014958,2]
[344594442,1733592640327,-490.62,0.00014958,2]
[344594443,1733592640339,-379.98248739,0.00014958,2]
[344594444,1733592640350,-360.4710022,0.00014958,2]
[344594445,1733592640600,-25659.4665498,0.00014958,2]
[344594446,1733592640611,-959.85,0.00014958,2]
[344594448,1733592640622,-8701.247253,0.00014958,2]
[344594479,1733592643210,-9560.33923055,0.00014958,2]
[344594481,1733592643222,-5974.90187509,0.00014958,2]
[344594483,1733592643380,-45095.45018493,0.00014958,2]
[344594484,1733592643389,-37517.48494451,0.00014959,2]
[344594485,1733592643398,-360.96444241,0.00014959,2]
[344594486,1733592643407,-200.0,0.00014959,2]
[344594487,1733592643416,-21103.58528129,0.00014959,2]
[344594488,1733592643425,-118573.77957772,0.0001496,2]
[344594489,1733592643434,-855.61941906,0.0001496,2]
[344594490,1733592643443,-200.0,0.0001496,2]
[344594491,1733592643452,-17443.11615508,0.0001496,2]
[344594492,1733592643474,-355.708,0.0001496,2]
[344594493,1733592643498,-759.99676032,0.0001496,2]
[344594494,1733592643510,-2531.913976,0.0001496,2]
[344594495,1733592643615,-2509.5428,0.0001496,2]
[344594496,1733592643628,-4939.21150524,0.0001496,2]
[344594497,1733592643640,-1859.403157,0.0001496,2]
[344594498,1733592643680,-2396.5189944,0.0001496,2]
[344594499,1733592643691,-1836.16629,0.0001496,2]
[344594500,1733592643702,-2653.491882,0.0001496,2]
[344594501,1733592643713,-679.30499915,0.0001496,2]
[344594511,1733592646257,-503.338,0.0001496,2]
[344594512,1733592646319,-273.75912918,0.0001496,2]
[344594513,1733592646381,-17514.0,0.0001496,2]
[344594919,1733592902762,156.0,0.0001501,29]
[344594921,1733593120204,2500.0,0.00015068,120]
[344594922,1733593202648,156.0,0.0001501,29]
[344594923,1733593503792,156.0,0.0001501,29]
[344594925,1733593802652,156.0,0.0001501,29]
[344594928,1733593832359,-151.61663114,0.00011572,2]
[344594929,1733593832371,-524.48806015,0.00011572,2]
[344594930,1733593832380,-524.48806015,0.00011573,2]
[344594931,1733593832390,-524.48806015,0.00011573,2]
[344594932,1733593832400,-48.92930926,0.00011645,2]
[344594933,1733593832421,-413.85069074,0.00011645,2]
[344594934,1733593832430,-300.0,0.00011672,2]
[344594935,1733593832439,-725.0,0.00011673,2]
[344594936,1733593832449,-722.0,0.00011673,2]
[344594937,1733593832458,-722.0,0.00011673,2]
[344594938,1733593832468,-722.0,0.00011673,2]
[344594939,1733593832478,-420.0,0.00012817,2]
[344594940,1733593832487,-150.0,0.00012986,2]
[344594941,1733593832497,-450.0,0.00013,2]
[344594942,1733593832507,-250.0,0.00013503,2]
[344594943,1733593832516,-1596.22,0.00013516,2]
[344594944,1733593832525,-150.0,0.00013557,2]
[344594945,1733593832534,-1000.0,0.00013557,2]
[344594946,1733593832544,-240.39,0.00013574,2]
[344594947,1733593832553,-750.0,0.00013665,2]
[344594949,1733593832562,-250.0,0.00013668,2]
[344594950,1733593832571,-178.68,0.00013691,2]
[344594951,1733593832580,-151.11,0.00013699,2]
[344594952,1733593832589,-200.0,0.00013699,2]
[344594953,1733593832599,-168.78,0.00013699,2]
[344594954,1733593832608,-192.0,0.00013823,2]
[344594955,1733593832620,-462.78,0.00013909,2]
[344594956,1733593832629,-509.12,0.00014025,2]
[344594957,1733593832637,-300.0,0.00014075,2]
[344594958,1733593832647,-240.39,0.00014328,2]
[344594959,1733593832656,-300.738,0.0001437,2]
[344594960,1733593832666,-4800.0,0.0001439,2]
[344594961,1733593832675,-166.84,0.00014495,2]
[344594962,1733593832684,-300.34324322,0.000145,2]
[344594963,1733593832694,-150.0,0.00014802,2]
[344594964,1733593832703,-3000.0,0.0001481,2]
[344594965,1733593832713,-258.42251926,0.00014874,2]
[344594966,1733593832722,-500.0,0.0001488,2]
[344594967,1733593832731,-1000.0,0.0001488,2]
[344594968,1733593832740,-6767.0461,0.0001488,2]
[344594969,1733593832749,-2500.0,0.0001488,2]
[344594970,1733593832758,-163.15515362,0.0001488,2]
[344594971,1733593832768,-150.0,0.0001488,2]
[344594973,1733593832777,-2031.32085797,0.0001488,2]
[344594975,1733593832785,-5382.44513338,0.0001489,2]
[344594977,1733593832794,-206.99686305,0.000149,2]
[344594979,1733593832804,-163.15515362,0.00014924,2]
[344594981,1733593832813,-953.40548185,0.0001495,2]
[344594983,1733593832823,-21369.84559718,0.00014955,2]
[344594985,1733593832832,-21369.84559718,0.00014956,2]
[344594987,1733593832841,-16027.38419788,0.00014957,2]
[344594989,1733593832850,-6523.72568115,0.00014958,2]
[344594992,1733593832873,-237.82702733,0.00014958,2]
[344594994,1733593832882,-13074.75218556,0.00014959,2]
[344594995,1733593832910,-2952.63201232,0.00014959,2]
[344594996,1733593832919,-4970.13116817,0.00014959,2]
[344594997,1733593832930,-1255.86883183,0.00014959,2]
[344594998,1733593832939,-6129.0,0.00014959,2]
[344594999,1733593832949,-12020.53814841,0.00014959,2]
[344595000,1733593832964,-6761.55270848,0.0001496,2]
[344595001,1733593832980,-500.0,0.0001496,2]
[344595002,1733593832994,-1521.10118943,0.0001496,2]
[344595003,1733593833007,-200.0,0.0001496,2]
[344595004,1733593833023,-270.72333181,0.00014961,2]
[344595005,1733593833038,-200.0,0.00014961,2]
[344595006,1733593833053,-200.0,0.00014961,2]
[344595007,1733593833067,-200.0,0.00014961,2]
[344595008,1733593833079,-200.0,0.00014962,2]
[344595009,1733593833094,-641.71456429,0.00014962,2]
[344595010,1733593833108,-200.0,0.00014962,2]
[344595011,1733593833127,-200.0,0.00014962,2]
[344595012,1733593833141,-294.51275821,0.00014963,2]
[344595013,1733593833158,-641.71456429,0.00014964,2]
[344595014,1733593833173,-5071.16453136,0.00014964,2]
[344595015,1733593833189,-9015.40361131,0.00014964,2]
[344595016,1733593833205,-200.0,0.00014965,2]
[344595017,1733593833220,-200.0,0.00014965,2]
[344595018,1733593833234,-200.0,0.00014965,2]
[344595019,1733593833250,-1140.82589208,0.00014965,2]
[344595020,1733593833266,-6761.55270848,0.00014966,2]
[344595021,1733593833282,-12020.53814841,0.00014966,2]
[344595022,1733593833293,-200.0,0.00014966,2]
[344595023,1733593833306,-200.0,0.00014966,2]
[344595024,1733593833324,-200.0,0.00014967,2]
[344595025,1733593833336,-206.99686305,0.00014967,2]
[344595026,1733593833349,-200.0,0.00014967,2]
[344595027,1733593833361,-294.51275821,0.00014967,2]
[344595028,1733593833379,-481.28592322,0.00014968,2]
[344595029,1733593833393,-270.72333181,0.00014968,2]
[344595030,1733593833404,-200.0,0.00014968,2]
[344595031,1733593833416,-21369.84559718,0.00014968,2]
[344595032,1733593833428,-641.71456429,0.00014968,2]
[344595033,1733593833443,-163.15515362,0.00014968,2]
[344595034,1733593833455,-200.0,0.00014968,2]
[344595035,1733593833468,-200.0,0.00014968,2]
[344595036,1733593833481,-200.0,0.00014968,2]
[344595037,1733593833494,-200.0,0.00014969,2]
[344595038,1733593833506,-5071.16453136,0.00014969,2]
[344595039,1733593833519,-4377.93082168,0.0001497,2]
[344595043,1733593838476,-2017.8306,0.00014957,2]
[344595044,1733593838488,-362.32011654,0.00014957,2]
[344595045,1733593838500,-1367.53559361,0.00014957,2]
[344595046,1733593838556,-55.68708837,0.00014957,2]
[344595047,1733593838567,-3803.37339852,0.00014959,2]
[344595048,1733593838576,-4637.47278963,0.0001497,2]
[344595049,1733593838586,-200.0,0.0001497,2]
[344595050,1733593838596,-1140.82589208,0.0001497,2]
[344595051,1733593838606,-294.51275821,0.0001497,2]
[344595052,1733593838615,-1521.10118943,0.00014971,2]
[344595053,1733593838628,-1393.01073486,0.00014971,2]
[344595054,1733593838700,-3065.16265452,0.00014971,2]
[344595055,1733593838735,-1261.60273564,0.00014971,2]
[344595056,1733593838746,-1041.77658346,0.00014971,2]
[344595057,1733593838755,-5071.16453136,0.00014971,2]
[344595058,1733593838765,-200.0,0.00014971,2]
[344595059,1733593838774,-3597.05914518,0.00014971,2]
[344595060,1733593838786,-1329.9999999,0.00014971,2]
[344595148,1733593840432,-425.39999988,0.00014971,2]
[344595149,1733593840560,-1409.09356352,0.00014971,2]
[344595150,1733593840570,-641.71456429,0.00014971,2]
[344595151,1733593840579,-200.0,0.00014972,2]
[344595152,1733593840590,-481.28592322,0.00014972,2]
[344595153,1733593840600,-5071.16453136,0.00014972,2]
[344595154,1733593840609,-1086.39568461,0.00014972,2]
[344595155,1733593840622,-10934.1424638,0.00014972,2]
[344595156,1733593840631,-200.0,0.00014972,2]
[344595157,1733593840640,-855.61941906,0.00014972,2]
[344595158,1733593840649,-2522.25084478,0.00014972,2]
[344595159,1733593840661,-13505.1333531,0.00014972,2]
[344595160,1733593840672,-200.0,0.00014973,2]
[344595161,1733593840681,-275.0508628,0.00014973,2]
[344595162,1733593840691,-500.0,0.00014973,2]
[344595163,1733593840700,-503.64091238,0.00014973,2]
[344595164,1733593840710,-500.0,0.00014973,2]
[344595165,1733593840719,-500.0,0.00014973,2]
[344595166,1733593840729,-360.96444241,0.00014973,2]
[344595167,1733593840739,-200.0,0.00014973,2]
[344595169,1733593840748,-12020.53814841,0.00014973,2]
[344595171,1733593840757,-220.88456866,0.00014974,2]
[344595172,1733593840767,-855.61941906,0.00014974,2]
[344595173,1733593840776,-200.0,0.00014974,2]
[344595174,1733593840786,-481.28592322,0.00014974,2]
[344595175,1733593840796,-200.0,0.00014975,2]
[344595176,1733593840806,-200.0,0.00014975,2]
[344595177,1733593840816,-220.88456866,0.00014975,2]
[344595178,1733593840826,-294.51275821,0.00014975,2]
[344595179,1733593840836,-200.0,0.00014975,2]
[344595180,1733593840845,-203.04249886,0.00014976,2]
[344595181,1733593840855,-203.04249886,0.00014976,2]
[344595182,1733593840865,-220.88456866,0.00014977,2]
[344595183,1733593840876,-200.0,0.00014977,2]
[344595184,1733593840886,-855.61941906,0.00014978,2]
[344595185,1733593840896,-200.0,0.00014978,2]
[344595186,1733593840905,-9398.99977348,0.00014978,2]
[344595187,1733593840920,-448.182,0.00014978,2]
[344595190,1733593843368,-11522.6638237,0.00014978,2]
[344595191,1733593843379,-855.61941906,0.00014978,2]
[344595192,1733593843388,-200.0,0.00014978,2]
[344595193,1733593843398,-12020.53814841,0.00014978,2]
[344595194,1733593843407,-200.0,0.00014979,2]
[344595195,1733593843417,-167.70528516,0.00014979,2]
[344595196,1733593843429,-500.0,0.00014979,2]
[344595197,1733593843438,-500.0,0.00014979,2]
[344595198,1733593843447,-500.0,0.00014979,2]
[344595199,1733593843456,-158.0651198,0.00014979,2]
[344595200,1733593843465,-500.0,0.00014979,2]
[344595201,1733593843474,-500.0,0.00014979,2]
[344595202,1733593843484,-500.0,0.00014979,2]
[344595203,1733593843494,-500.0,0.00014979,2]
[344595204,1733593843503,-420.92729314,0.00014979,2]
[344595205,1733593843513,-550.0,0.00014979,2]
[344595206,1733593843523,-500.0,0.00014979,2]
[344595207,1733593843532,-500.0,0.00014979,2]
[344595208,1733593843542,-500.0,0.00014979,2]
[344595209,1733593843552,-500.0,0.00014979,2]
[344595210,1733593843561,-500.0,0.00014979,2]
[344595211,1733593843571,-500.0,0.00014979,2]
[344595212,1733593843581,-500.0,0.00014979,2]
[344595213,1733593843591,-500.0,0.00014979,2]
[344595214,1733593843600,-500.0,0.00014979,2]
[344595215,1733593843610,-490.08412126,0.00014979,2]
[344595216,1733593843619,-500.0,0.00014979,2]
[344595217,1733593843630,-500.0,0.00014979,2]
[344595218,1733593843640,-500.0,0.00014979,2]
[344595219,1733593843650,-500.0,0.00014979,2]
[344595220,1733593843660,-500.0,0.00014979,2]
[344595221,1733593843669,-500.0,0.00014979,2]
[344595222,1733593843678,-220.88456866,0.00014979,2]
[344595223,1733593843688,-268.44816946,0.00014979,2]
[344595224,1733593843697,-4688.92688601,0.00014979,2]
[344595225,1733593843715,-1176.78,0.00014979,2]
[344595226,1733593843735,-848.909429,0.00014979,2]
[344595227,1733593843747,-840.0,0.00014979,2]
[344595228,1733593843758,-11890.50653428,0.00014979,2]
[344595229,1733593843769,-1924.72274789,0.00014979,2]
[344595230,1733593843779,-1915.007,0.0001498,2]
[344595231,1733593843789,-572.0,0.0001498,2]
[344595232,1733593843798,-1566.74270436,0.0001498,3]